bitfinex-derivatives/quotes_SOLF0:USTF0_20250630
["timestamp","ask_amount","ask_price","bid_price","bid_amount"]
[1751273426049,5.3371,149.86,149.84,5.57871177]
[1751273426252,5.3371,149.86,149.83,5.3379]
[1751273426547,5.3371,149.86,149.84,5.57905978]
[1751273426753,5.3371,149.86,149.83,5.3379]
[1751273427045,5.3371,149.86,149.84,5.57905978]
[1751273427251,5.3371,149.86,149.83,5.3379]
[1751273427548,5.3371,149.86,149.84,5.57918378]
[1751273427852,5.3371,149.86,149.85,5.57918378]
[1751273428041,5.3371,149.86,149.83,7.09333458]
[1751273428247,5.3371,149.86,149.84,5.5795001]
[1751273428447,5.3371,149.86,149.83,7.09333458]
[1751273428649,5.3371,149.86,149.84,5.57989547]
[1751273428852,5.3371,149.86,149.83,7.09333458]
[1751273429050,5.3373,149.85,149.82,5.3384]
[1751273429350,5.3373,149.85,149.83,5.57989604]
[1751273429551,5.3373,149.85,149.84,5.57989604]
[1751273430156,7.09273458,149.85,149.84,5.57989604]
[1751273430854,1.75543458,149.85,149.84,5.57989604]
[1751273435158,7.09273458,149.85,149.84,5.57989604]
[1751273438462,5.3373,149.85,149.84,5.57989604]
[1751273438658,7.09273458,149.85,149.84,5.57989604]
[1751273440859,7.09273458,149.85,149.8,15.4107183]
[1751273440860,5.3382,149.83,149.8,6.23290184]
[1751273441062,7.09363458,149.83,149.81,5.60165716]
[1751273441263,7.09363458,149.83,149.82,5.60165716]
[1751273442468,1.75543458,149.83,149.82,5.60165716]
[1751273442668,7.09323458,149.84,149.82,5.60165716]
[1751273442863,7.09323458,149.84,149.83,5.60165716]
[1751273444879,34.75543458,149.86,149.83,5.60165716]
[1751273445069,4.6896,149.92,149.83,5.60165716]
[1751273445070,33.0,149.89,149.84,5.60165716]
[1751273445269,1.75543458,149.87,149.85,5.60165716]
[1751273445470,1.75543458,149.87,149.86,5.60165716]
[1751273446676,7.09223458,149.87,149.86,5.60165716]
[1751273447474,7.09223458,149.87,149.83,7.09343458]
[1751273447773,7.09223458,149.87,149.84,5.60932949]
[1751273447974,7.09223458,149.87,149.85,5.60932949]
[1751273448174,7.09223458,149.87,149.83,7.09343458]
[1751273448371,7.09223458,149.87,149.84,5.60932949]
[1751273448671,7.09223458,149.87,149.85,5.60932949]
[1751273448868,7.09223458,149.87,149.86,5.60932949]
[1751273449974,7.09183458,149.88,149.86,5.60932949]
[1751273450174,7.09183458,149.88,149.84,7.09303458]
[1751273450375,1.75543458,149.87,149.85,5.60978576]
[1751273450572,1.75543458,149.87,149.86,5.60978576]
[1751273450774,7.09183458,149.88,149.86,5.60978576]
[1751273450974,7.09183458,149.88,149.87,5.60978576]
[1751273451177,7.09143458,149.89,149.87,5.60978576]
[1751273451479,7.09143458,149.89,149.84,6.23290184]
[1751273451678,7.09143458,149.89,149.85,7.35559659]
[1751273451869,7.09143458,149.89,149.86,5.60016201]
[1751273452070,7.09143458,149.89,149.87,5.60016201]
[1751273452271,7.09143458,149.89,149.85,1.75543458]
[1751273452472,7.09143458,149.89,149.86,5.59934009]
[1751273452775,5.336,149.89,149.87,5.59934009]
[1751273453074,1.75543458,149.89,149.85,7.09263458]
[1751273453278,1.75543458,149.89,149.86,5.59934009]
[1751273453477,1.75543458,149.89,149.87,5.59934009]
[1751273453679,1.75543458,149.89,149.85,7.09263458]
[1751273453977,1.75543458,149.89,149.86,5.59863972]
[1751273454177,1.75543458,149.89,149.87,5.59863972]
[1751273454376,1.75543458,149.89,149.85,7.09263458]
[1751273454577,1.75543458,149.89,149.86,5.59804414]
[1751273454876,1.75543458,149.89,149.87,5.59804414]
[1751273455078,1.75543458,149.89,149.85,7.09263458]
[1751273455278,1.75543458,149.89,149.86,5.59804414]
[1751273455476,1.75543458,149.89,149.87,5.59804414]
[1751273455777,1.75543458,149.89,149.85,7.09263458]
[1751273456081,1.75543458,149.89,149.86,5.57899937]
[1751273456379,1.75543458,149.89,149.87,5.57899937]
[1751273456679,1.75543458,149.89,149.85,7.09263458]
[1751273456870,1.75543458,149.89,149.86,5.57857966]
[1751273457074,7.09133458,149.89,149.87,5.57857966]
[1751273457277,7.09133458,149.89,149.85,7.09263458]
[1751273457476,7.09133458,149.89,149.86,5.578177]
[1751273457776,7.09133458,149.89,149.87,5.578177]
[1751273457979,7.09133458,149.89,149.85,7.09263458]
[1751273458279,7.09133458,149.89,149.86,5.57822144]
[1751273458474,1.75543458,149.89,149.87,5.57822144]
[1751273458679,1.75543458,149.89,149.86,1.75543458]
[1751273458882,5.3357,149.9,149.87,5.57754673]
[1751273459080,5.3353,149.91,149.88,5.57754673]
[1751273459271,114.2647418,149.93,149.89,7.332621]
[1751273459472,114.2647418,149.93,149.89,1.75543458]
[1751273459876,1.75543458,149.93,149.9,5.57536138]
[1751273460072,1.75543458,149.94,149.9,1.75543458]
[1751273460376,1.75543458,149.95,149.92,1.75543458]
[1751273460580,33.0,149.98,149.93,5.57493297]
[1751273463084,7.09103458,149.9,149.89,6.7477278]
[1751273464383,5.3356,149.9,149.89,6.7477278]
[1751273464680,7.09103458,149.9,149.89,6.7477278]
[1751273465583,5.3372,149.86,149.84,6.23290184]
[1751273465883,1.75543458,149.85,149.81,39.23290184]
[1751273466079,33.0,149.9,149.81,44.57140184]
[1751273466080,1.75543458,149.84,149.81,44.57140184]
[1751273468189,7.09313458,149.84,149.81,44.57140184]
[1751273471492,5.3377,149.84,149.81,44.57140184]
[1751273471691,7.09313458,149.84,149.81,44.57140184]
[1751273471891,7.09313458,149.84,149.81,39.23290184]
[1751273472290,5.338,149.83,149.81,39.23290184]
[1751273472589,7.09343458,149.83,149.81,39.23290184]
[1751273472791,7.09343458,149.83,149.82,5.61121978]
[1751273472994,1.75543458,149.83,149.82,5.61121978]
[1751273473390,39.9466,149.9,149.82,5.61121978]
[1751273473586,1.75543458,149.84,149.83,5.61121978]
[1751273474584,7.09283458,149.85,149.83,5.61121978]
[1751273474784,7.09283458,149.85,149.84,5.61121978]
[1751273479785,5.3374,149.85,149.84,5.61121978]
[1751273479990,7.09283458,149.85,149.84,5.61121978]
[1751273482698,7.09253458,149.86,149.84,5.61121978]
[1751273482997,7.09253458,149.86,149.82,7.09383458]
[1751273483192,7.09253458,149.86,149.83,5.61953863]
[1751273483391,7.09253458,149.86,149.84,5.61953863]
[1751273483594,7.09253458,149.86,149.82,7.09383458]
[1751273483899,7.09253458,149.86,149.83,5.6193513]
[1751273484101,7.09253458,149.86,149.84,5.6193513]
[1751273484291,5.3373,149.85,149.82,7.09383458]
[1751273484496,5.3373,149.85,149.83,5.61926994]
[1751273484700,5.3373,149.85,149.84,5.61926994]
[1751273485400,7.09273458,149.85,149.84,5.61926994]
[1751273486103,5.3373,149.85,149.84,5.61926994]
[1751273486300,7.09273458,149.85,149.84,5.61926994]
[1751273490815,5.3382,149.83,149.79,13.32773642]
[1751273491108,7.09363458,149.83,149.8,5.61698515]
[1751273491305,7.09363458,149.83,149.81,5.61698515]
[1751273491505,7.09363458,149.83,149.82,5.61698515]
[1751273501715,1.75543458,149.83,149.82,5.61698515]
[1751273503213,7.09343458,149.83,149.82,5.61698515]
[1751273504419,32.94,149.87,149.82,5.61698515]
[1751273504621,1.75543458,149.86,149.83,5.61698515]
[1751273504821,1.75543458,149.86,149.82,1.75543458]
[1751273505118,7.09293458,149.85,149.83,5.62114511]
[1751273505320,7.09293458,149.85,149.82,7.09353458]
[1751273505521,7.09293458,149.85,149.83,5.62134773]
[1751273505722,7.09293458,149.85,149.82,7.09353458]
[1751273505914,7.09293458,149.85,149.83,5.62134719]
[1751273506115,6.9466,149.9,149.84,5.62310279]
[1751273506116,7.09253458,149.86,149.84,5.62310279]
[1751273506316,1.75543458,149.88,149.85,5.62295543]
[1751273506519,1.75543458,149.88,149.84,1.75543458]
[1751273506520,1.75543458,149.88,149.86,5.62295543]
[1751273506819,5.3366,149.87,149.84,7.09273458]
[1751273507018,32.94,149.9,149.85,7.37777877]
[1751273507212,1.75543458,149.89,149.86,5.62234419]
[1751273507411,1.75543458,149.89,149.87,5.6232577]
[1751273507711,1.75543458,149.89,149.85,1.75543458]
[1751273507913,7.09193458,149.88,149.86,5.62325716]
[1751273508113,5.3365,149.88,149.87,5.62325716]
[1751273511322,7.09193458,149.88,149.87,5.62325716]
[1751273517430,5.3365,149.88,149.87,5.62325716]
[1751273517727,5.337,149.86,149.83,6.23290184]
[1751273517931,1.75543458,149.85,149.84,5.63387777]
[1751273518631,7.09273458,149.85,149.84,5.63387777]
[1751273525842,1.75543458,149.85,149.84,5.63387777]
[1751273527638,1.75543458,149.86,149.84,5.63387777]
[1751273527843,7.09213458,149.87,149.85,5.63387777]
[1751273528143,7.09213458,149.87,149.83,7.09343458]
[1751273528333,7.09213458,149.87,149.84,5.64806053]
[1751273528533,7.09213458,149.87,149.85,5.64806053]
[1751273528738,7.09213458,149.87,149.86,5.64806053]
[1751273529545,5.3367,149.87,149.86,5.64806053]
[1751273529846,7.09213458,149.87,149.86,5.64806053]
[1751273530145,1.75543458,149.89,149.86,5.64806053]
[1751273530340,1.75543458,149.89,149.85,1.75543458]
[1751273530536,1.75543458,149.88,149.86,5.65470526]
[1751273530737,7.09163458,149.88,149.87,5.65470526]
[1751273531942,5.3374,149.85,149.83,6.23290184]
[1751273532147,7.09283458,149.85,149.84,5.64990754]
[1751273532948,1.75543458,149.85,149.84,5.64990754]
[1751273533349,7.09253458,149.86,149.84,5.64990754]
[1751273533550,7.09253458,149.86,149.85,5.64990754]
[1751273540043,37.4139,149.94,149.85,7.40534212]
[1751273540245,37.4139,149.94,149.86,7.40458563]
[1751273540246,1.75467809,149.91,149.86,7.40458563]
[1751273540445,1.75467809,149.89,149.87,5.64990754]
[1751273540652,1.75520232,149.88,149.85,39.15290184]
[1751273540954,1.75520232,149.87,149.86,5.64617328]
[1751273541555,7.09200232,149.87,149.86,5.64617328]
[1751273548658,7.09160232,149.88,149.86,5.64617328]
[1751273548858,7.09160232,149.88,149.87,5.64617328]
[1751273549159,7.09120232,149.89,149.87,5.64617328]
[1751273549356,7.09120232,149.89,149.88,5.64617328]
[1751273554460,8.43520232,149.89,149.84,6.23290184]
[1751273554663,1.75520232,149.85,149.83,6.23290184]
[1751273554866,7.09290232,149.84,149.83,6.23290184]
[1751273555159,7.09290232,149.84,149.81,8.31628372]
[1751273555160,1.75520232,149.84,149.81,6.23290184]
[1751273555464,1.75520232,149.82,149.8,39.15290184]
[1751273557065,1.75520232,149.82,149.8,32.92]
[1751273557869,7.09360232,149.82,149.8,32.92]
[1751273558866,7.09390232,149.81,149.8,32.92]
[1751273559065,7.09390232,149.81,149.79,6.23290184]
[1751273559768,1.75520232,149.81,149.79,6.23290184]
[1751273560274,7.09400232,149.81,149.79,6.23290184]
[1751273560572,1.75520232,149.81,149.79,6.23290184]
[1751273561274,1.75520232,149.81,149.78,7.98810416]
[1751273561677,1.75520232,149.81,149.78,7.09500232]
[1751273562372,7.09370232,149.82,149.79,1.75520232]
[1751273564977,7.09370232,149.82,149.78,11.57270184]
[1751273565166,5.3387,149.81,149.79,1.75520232]
[1751273566276,5.3387,149.81,149.79,7.09460232]
[1751273566470,5.3387,149.81,149.8,5.63396014]
[1751273566866,5.3385,149.82,149.8,5.63396014]
[1751273567077,5.3385,149.82,149.81,5.63396014]
[1751273568678,7.09370232,149.82,149.81,5.63396014]
[1751273571178,1.75520232,149.82,149.81,5.63396014]
[1751273572278,5.3382,149.83,149.81,5.63396014]
[1751273572579,7.09360232,149.82,149.79,5.3394]
[1751273572879,1.75520232,149.81,149.8,5.63075377]
[1751273573078,7.09360232,149.82,149.8,5.63075377]
[1751273573279,1.75520232,149.82,149.81,5.63075377]
[1751273576383,7.09360232,149.82,149.81,5.63075377]
[1751273577885,5.3384,149.82,149.81,5.63075377]
[1751273578084,7.09360232,149.82,149.81,5.63075377]
[1751273588190,1.75520232,149.82,149.81,5.63075377]
[1751273588596,32.92,149.86,149.81,5.63075377]
[1751273588793,1.75520232,149.82,149.77,34.65520232]
[1751273588997,7.09410232,149.81,149.78,5.63040566]
[1751273589196,7.09410232,149.81,149.79,5.63040566]
[1751273589397,1.75520232,149.81,149.77,38.24]
[1751273589595,1.75694746,149.81,149.78,5.63081575]
[1751273589798,1.75694746,149.79,149.76,6.23290184]
[1751273589998,1.75694746,149.78,149.77,5.63081575]
[1751273590199,1.75745289,149.78,149.77,5.63081575]
[1751273590401,7.09725289,149.78,149.77,5.63081575]
[1751273590597,5.3398,149.78,149.77,5.63081575]
[1751273591092,7.09725289,149.78,149.77,5.63081575]
[1751273591997,5.3409,149.75,149.74,6.23290184]
[1751273592192,7.09835289,149.75,149.7,11.57550184]
[1751273592397,1.75745289,149.74,149.7,13.33295473]
[1751273592701,1.75745289,149.74,149.7,7.99035473]
[1751273593399,7.09885289,149.74,149.7,13.33275473]
[1751273594099,7.09885289,149.74,149.7,11.57530184]
[1751273594300,5.3417,149.73,149.7,7.99035473]
[1751273595406,5.3414,149.74,149.71,1.75745289]
[1751273596612,5.3414,149.74,149.71,7.09975289]
[1751273596808,7.09885289,149.74,149.71,1.75745289]
[1751273598810,7.09925289,149.73,149.7,11.57540184]
[1751273599010,7.09925289,149.73,149.7,13.33285473]
[1751273599909,5.3418,149.73,149.7,13.33285473]
[1751273600106,5.3414,149.74,149.71,7.09965289]
[1751273600310,1.75745289,149.76,149.72,1.75745289]
[1751273600509,1.75745289,149.76,149.71,6.23290184]
[1751273600711,1.75745289,149.75,149.72,1.75745289]
[1751273600908,7.09865289,149.75,149.72,1.75745289]
[1751273601812,7.09865289,149.75,149.72,7.09935289]
[1751273602414,7.09865289,149.75,149.72,5.3419]
[1751273604013,7.09865289,149.75,149.73,5.63594155]
[1751273604213,7.09865289,149.75,149.74,5.63594155]
[1751273611216,5.3412,149.75,149.74,5.63594155]
[1751273611421,7.09865289,149.75,149.74,5.63594155]
[1751273613623,5.3412,149.75,149.74,5.63594155]
[1751273613921,7.09865289,149.75,149.74,5.63594155]
[1751273620530,1.75745289,149.75,149.74,5.63594155]
[1751273621433,7.09835289,149.75,149.74,5.63594155]
[1751273623235,5.3409,149.75,149.74,5.63594155]
[1751273624331,7.09805289,149.76,149.74,5.63594155]
[1751273624537,1.75745289,149.79,149.75,7.38888602]
[1751273624733,1.75745289,149.81,149.77,1.75745289]
[1751273624935,7.09645289,149.81,149.77,7.09755289]
[1751273625135,7.09645289,149.81,149.78,1.75745289]
[1751273625738,5.3391,149.8,149.78,1.75745289]
[1751273626040,32.9,149.84,149.78,1.75745289]
[1751273626335,5.3385,149.82,149.79,7.38373953]
[1751273626538,5.3385,149.82,149.79,1.75745289]
[1751273626735,34.65745289,149.84,149.8,1.75745289]
[1751273626941,1.75745289,149.86,149.83,1.75745289]
[1751273627334,5.3376,149.85,149.82,1.75745289]
[1751273627532,5.3376,149.85,149.83,5.62524462]
[1751273627738,5.3376,149.85,149.81,38.2385]
[1751273627936,5.3376,149.85,149.82,5.62524462]
[1751273628136,5.3376,149.85,149.81,38.2385]
[1751273628337,5.3371,149.86,149.82,10.96253741]
[1751273628641,5.3371,149.86,149.83,5.62423741]
[1751273628840,5.3371,149.86,149.84,5.62423741]
[1751273629034,5.3371,149.86,149.82,5.3383]
[1751273629241,5.3371,149.86,149.83,5.62188204]
[1751273629445,5.3371,149.86,149.84,5.62188204]
[1751273629639,5.3371,149.86,149.82,8.08149734]
[1751273629837,5.3367,149.87,149.83,10.95988204]
[1751273630041,2.74319734,149.89,149.84,5.62188204]
[1751273630245,2.74319734,149.89,149.83,5.338]
[1751273630542,5.3368,149.87,149.83,5.338]
[1751273630745,5.3368,149.87,149.84,5.61997741]
[1751273630943,5.3368,149.87,149.83,5.338]
[1751273631142,5.3363,149.88,149.84,10.95757747]
[1751273631439,5.3363,149.88,149.85,5.61751161]
[1751273631633,5.3363,149.88,149.84,5.3376]
[1751273631838,5.3363,149.88,149.85,5.61750939]
[1751273632041,5.3363,149.88,149.84,5.3376]
[1751273632242,5.3363,149.88,149.85,5.61463562]
[1751273632445,5.3363,149.88,149.85,5.3373]
[1751273635349,5.336,149.89,149.85,5.3373]
[1751273636049,5.336,149.89,149.86,5.3369]
[1751273638241,5.3362,149.88,149.85,38.2372]
[1751273638651,2.74319734,149.91,149.85,38.2372]
[1751273638853,5.336,149.89,149.85,38.2372]
[1751273639248,5.336,149.89,149.86,5.3369]
[1751273639652,5.3357,149.9,149.86,5.3369]
[1751273641355,8.07889734,149.9,149.86,5.3369]
[1751273642354,5.3359,149.89,149.85,38.2372]
[1751273644357,8.07889734,149.9,149.86,5.3369]
[1751273644658,2.74319734,149.9,149.85,32.9]
[1751273645558,5.3359,149.89,149.85,38.2372]
[1751273646257,32.9,149.93,149.85,32.9]
[1751273646453,2.74319734,149.92,149.85,32.9]
[1751273647156,5.3354,149.91,149.87,5.3363]
[1751273647762,7.08973499,149.91,149.88,1.75433499]
[1751273648357,5.3355,149.9,149.88,1.75433499]
[1751273649064,5.3355,149.9,149.87,7.09063499]
[1751273653070,7.08963499,149.91,149.87,7.09063499]
[1751273654071,7.08963499,149.91,149.87,5.3363]
[1751273654363,32.88,149.94,149.87,5.3363]
[1751273654364,7.08983499,149.9,149.87,5.3363]
[1751273654568,7.08983499,149.9,149.88,5.3362]
[1751273656671,1.75433499,149.9,149.88,5.3362]
[1751273657969,5.3353,149.91,149.88,5.3362]
[1751273658163,1.75433499,149.9,149.88,5.3362]
[1751273658465,1.75433499,149.9,149.87,7.09083499]
[1751273660576,1.75433499,149.9,149.87,5.3365]
[1751273660869,1.75433499,149.9,149.87,7.09083499]
[1751273661679,5.3353,149.91,149.88,5.3362]
[1751273661871,7.08963499,149.91,149.88,5.3362]
[1751273664379,7.08963499,149.91,149.87,7.09073499]
[1751273665076,1.75433499,149.9,149.87,7.09073499]
[1751273665279,1.75433499,149.9,149.85,32.9]
[1751273665280,1.75433499,149.89,149.86,5.3367]
[1751273666375,1.75433499,149.89,149.87,5.53539736]
[1751273666577,1.75433499,149.89,149.86,5.3367]
[1751273666778,1.75433499,149.89,149.87,5.53539736]
[1751273667078,1.75433499,149.89,149.86,5.3367]
[1751273667273,1.75433499,149.89,149.87,5.53946904]
[1751273667471,7.08993499,149.9,149.86,7.09103499]
[1751273667672,7.08993499,149.9,149.87,5.53946904]
[1751273667972,7.08993499,149.9,149.86,7.09103499]
[1751273668172,7.08993499,149.9,149.87,5.54405952]
[1751273668373,7.08993499,149.9,149.86,7.09103499]
[1751273668573,7.08993499,149.9,149.87,5.54433052]
[1751273668774,7.08993499,149.9,149.86,7.09103499]
[1751273669076,5.3356,149.9,149.87,5.54433052]
[1751273669278,7.08993499,149.9,149.88,5.54433052]
[1751273669479,5.336,149.89,149.86,7.09103499]
[1751273669681,5.336,149.89,149.87,5.55036178]
[1751273669876,5.336,149.89,149.88,5.55036178]
[1751273670076,7.09033499,149.89,149.88,5.55036178]
[1751273672869,5.3367,149.87,149.84,6.23290184]
[1751273673081,1.75433499,149.86,149.85,5.56803702]
[1751273674071,7.09133499,149.86,149.85,5.56803702]
[1751273674884,1.75433499,149.86,149.85,5.56803702]
[1751273675277,7.09133499,149.86,149.83,5.3379]
[1751273675476,7.09133499,149.86,149.84,5.5714598]
[1751273675776,1.75433499,149.85,149.83,11.57692926]
[1751273676080,1.75433499,149.85,149.84,5.57146303]
[1751273676384,7.09163499,149.85,149.84,5.57146303]
[1751273682187,5.3373,149.85,149.84,5.57146303]
[1751273682390,7.09163499,149.85,149.84,5.57146303]
[1751273683988,4.4358,149.89,149.84,5.57146303]
[1751273684193,1.75433499,149.86,149.85,5.57146303]
[1751273685688,7.09133499,149.86,149.85,5.57146303]
[1751273686189,5.3375,149.85,149.81,13.33196425]
[1751273686391,1.75433499,149.84,149.82,5.59901661]
[1751273686687,1.75433499,149.84,149.83,5.59901661]
[1751273687183,7.09183499,149.85,149.83,5.59901661]
[1751273687389,7.09183499,149.85,149.84,5.59901661]
[1751273691391,7.09183499,149.85,149.82,5.3383]
[1751273691592,7.09183499,149.85,149.83,5.59465169]
[1751273691794,7.09183499,149.85,149.82,5.3383]
[1751273691988,7.09183499,149.85,149.83,5.59465223]
[1751273692188,7.09183499,149.85,149.81,7.09303499]
[1751273692390,1.75433499,149.84,149.82,5.59414739]
[1751273692589,1.75433499,149.84,149.83,5.59414739]
[1751273696903,7.09203499,149.84,149.83,5.59414739]
[1751273699000,5.3387,149.81,149.79,32.88]
[1751273699205,1.75433499,149.8,149.79,32.88]
[1751273699498,1.75433499,149.8,149.79,5.59362233]
[1751273703208,7.09343499,149.8,149.79,5.59362233]
[1751273712015,5.3397,149.79,149.76,32.86]
[1751273712214,1.75433499,149.78,149.77,5.6141967]
[1751273712615,2.2056,149.88,149.77,7.36853169]
[1751273712811,1.75433499,149.82,149.78,7.36853169]
[1751273713012,1.75433499,149.82,149.79,5.6141967]
[1751273713320,1.75433499,149.82,149.8,5.6141967]
[1751273713520,1.75433499,149.82,149.78,1.75433499]
[1751273713718,1.75433499,149.82,149.79,5.61359827]
[1751273713915,1.75433499,149.82,149.8,5.61359827]
[1751273714115,7.09293499,149.82,149.79,5.3394]
[1751273714316,7.09293499,149.82,149.8,5.61471572]
[1751273714618,1.75433499,149.83,149.79,1.75433499]
[1751273714817,7.09263499,149.83,149.8,10.95377818]
[1751273715013,5.3383,149.83,149.81,5.61467818]
[1751273715220,5.3383,149.83,149.8,5.3391]
[1751273715221,7.09263499,149.83,149.82,5.61350958]
[1751273716534,7.09263499,149.83,149.8,5.3391]
[1751273716821,7.09263499,149.83,149.81,5.61035828]
[1751273717026,7.09273499,149.82,149.79,5.3393]
[1751273717222,7.09273499,149.82,149.8,5.61123811]
[1751273717421,1.75433499,149.82,149.81,5.61123811]
[1751273722628,5.3378,149.84,149.81,10.94993811]
[1751273722821,5.3378,149.84,149.82,5.60494998]
[1751273723023,1.75433499,149.83,149.81,5.3387]
[1751273723222,1.75433499,149.83,149.82,5.60511953]
[1751273726430,7.09233499,149.83,149.82,5.60511953]
[1751273726623,7.09233499,149.83,149.78,6.9401]
[1751273726624,1.75433499,149.83,149.78,13.17912926]
[1751273726824,32.86,149.86,149.79,5.60723045]
[1751273726825,1.75433499,149.8,149.79,5.60723045]
[1751273730225,7.09343499,149.8,149.79,5.60723045]
[1751273735631,5.3405,149.76,149.75,6.23902926]
[1751273735937,1.75433499,149.76,149.72,13.07052926]
[1751273736237,32.86,149.78,149.72,13.07052926]
[1751273736238,1.75433499,149.73,149.72,13.07052926]
[1751273737036,7.09563499,149.74,149.72,13.07052926]
[1751273737335,1.75433499,149.73,149.72,6.8315]
[1751273738342,1.75433499,149.73,149.72,13.07052926]
[1751273739039,7.09563499,149.74,149.72,13.07052926]
[1751273739540,1.75433499,149.74,149.72,13.07052926]
[1751273740742,7.09563499,149.74,149.72,13.07052926]
[1751273744437,1.75433499,149.74,149.72,18.41242926]
[1751273746445,1.75433499,149.74,149.72,12.1734]
[1751273747548,1.75433499,149.74,149.73,5.6113563]
[1751273750743,7.09523499,149.75,149.73,5.6113563]
[1751273750952,1.75433499,149.8,149.74,40.22569129]
[1751273751151,1.75433499,149.8,149.76,1.75433499]
[1751273751545,1.75433499,149.8,149.77,5.608808]
[1751273751860,7.09363499,149.8,149.78,5.608808]
[1751273752046,1.75433499,149.81,149.77,1.75433499]
[1751273752346,32.86,149.82,149.78,5.60866224]
[1751273752552,1.75433499,149.81,149.77,1.75433499]
[1751273752752,1.75433499,149.81,149.78,5.60864587]
[1751273753052,1.75433499,149.81,149.77,1.75433499]
[1751273753249,1.75433499,149.81,149.78,5.60864587]
[1751273753448,1.75433499,149.81,149.77,1.75433499]
[1751273753649,7.09323499,149.81,149.78,10.94858062]
[1751273753851,5.3389,149.81,149.78,5.3398]
[1751273756753,2.74475586,149.84,149.79,5.60899566]
[1751273756956,2.74475586,149.84,149.78,2.74475586]
[1751273757144,2.74475586,149.84,149.79,5.60877981]
[1751273757349,2.74475586,149.84,149.78,35.60475586]
[1751273757551,5.3382,149.83,149.8,5.339]
[1751273759652,5.3382,149.83,149.81,5.58570136]
[1751273759858,5.3382,149.83,149.8,5.339]
[1751273760057,5.3382,149.83,149.81,5.58570081]
[1751273760253,5.3382,149.83,149.8,5.339]
[1751273760459,5.3382,149.83,149.81,5.58570193]
[1751273760752,2.74475586,149.87,149.8,2.74475586]
[1751273760959,2.74475586,149.87,149.81,5.5860111]
[1751273761261,2.74475586,149.87,149.82,5.5860111]
[1751273761554,5.3376,149.85,149.82,5.3381]
[1751273762353,5.3371,149.86,149.83,5.338]
[1751273766262,5.3373,149.85,149.82,5.3382]
[1751273766965,5.3373,149.85,149.83,5.58165995]
[1751273767161,5.3373,149.85,149.82,5.3382]
[1751273767352,5.3373,149.85,149.83,5.58165995]
[1751273767556,5.3371,149.86,149.82,5.3382]
[1751273767855,5.3371,149.86,149.83,5.5806419]
[1751273768052,5.3371,149.86,149.8,2.74475586]
[1751273768256,5.3371,149.86,149.82,5.338]
[1751273768452,5.3371,149.86,149.83,5.5806419]
[1751273768652,5.3371,149.86,149.81,5.3384]
[1751273768857,5.3371,149.86,149.82,5.5658485]
[1751273769059,5.3371,149.86,149.83,5.5658485]
[1751273769260,5.3371,149.86,149.8,2.74475586]
[1751273769560,5.3371,149.86,149.81,5.5650389]
[1751273769761,5.3371,149.86,149.82,5.5650389]
[1751273769965,5.3371,149.86,149.83,5.5650389]
[1751273770162,5.3371,149.86,149.8,2.74475586]
[1751273770363,5.3371,149.86,149.81,5.55498766]
[1751273770564,5.3371,149.86,149.83,5.3379]
[1751273773770,7.09267578,149.86,149.83,5.3379]
[1751273774267,1.75557578,149.84,149.8,1.75557578]
[1751273774480,1.75557578,149.84,149.81,5.54703386]
[1751273774676,1.75557578,149.83,149.82,5.54703386]
[1751273775272,1.75557578,149.83,149.81,5.3386]
[1751273775674,7.09347578,149.84,149.81,5.3386]
[1751273775878,5.3379,149.84,149.81,5.3386]
[1751273781585,5.3374,149.85,149.81,5.3386]
[1751273783587,5.3378,149.84,149.81,5.3386]
[1751273785788,5.3378,149.84,149.82,5.55355859]
[1751273785992,5.3378,149.84,149.81,5.3386]
[1751273786180,5.3378,149.84,149.82,5.55355859]
[1751273786385,5.3378,149.84,149.81,5.3386]
[1751273786580,5.3378,149.84,149.82,5.55423471]
[1751273786786,5.3378,149.84,149.81,5.3386]
[1751273787082,5.3378,149.84,149.82,5.55423471]
[1751273787283,5.3378,149.84,149.81,5.3386]
[1751273787483,5.3378,149.84,149.82,5.55522939]
[1751273787685,5.3378,149.84,149.81,5.3386]
[1751273787884,5.3378,149.84,149.82,5.55522939]
[1751273788081,5.3378,149.84,149.81,5.3386]
[1751273788389,5.3378,149.84,149.82,5.55522939]
[1751273788590,5.3375,149.85,149.78,41.84285171]
[1751273788796,5.3375,149.85,149.79,5.55637259]
[1751273789082,5.3375,149.85,149.8,5.55637259]
[1751273789285,5.3375,149.85,149.82,5.3381]
[1751273789684,5.337,149.86,149.8,2.74382245]
[1751273789884,5.337,149.86,149.81,5.55760685]
[1751273790091,5.337,149.86,149.82,5.55760685]
[1751273790282,5.337,149.86,149.8,2.74382245]
[1751273790283,5.337,149.86,149.83,10.89530685]
[1751273790478,5.337,149.86,149.83,5.3377]